fUST/lending_fUST_20250410
["ID","MTS","AMOUNT","RATE_DAILY","PERIOD"]
[357631312,1744254647000,-210.9235491,0.0001842,2]
[357631313,1744254647011,-941.99551927,0.0001843,2]
[357631409,1744255778154,-153.50496537,0.00015202,2]
[357631445,1744255831679,-4738.46908103,0.00015202,2]
[357631447,1744255831689,-300.0,0.00016197,2]
[357631449,1744255831699,-262.59243495,0.00016199,2]
[357631451,1744255831708,-250.0,0.00016199,2]
[357631453,1744255831718,-212.50019523,0.00016199,2]
[357631455,1744255831727,-33321.6069608,0.000162,2]
[357631458,1744255831747,-2544.94560105,0.000162,2]
[357631460,1744255831759,-2750.0,0.000162,2]
[357631461,1744255831773,-4450.0,0.000162,2]
[357631466,1744255831828,-500.0,0.00016197,2]
[357631469,1744255831840,-500.0,0.00016197,2]
[357631471,1744255831850,-777.37555389,0.000162,2]
[357631472,1744255831861,-6664.06223238,0.000162,2]
[357631530,1744255842942,-500.0,0.00016197,2]
[357631531,1744255842960,-251.18808791,0.00016197,2]
[357631532,1744255842980,-34.32690164,0.00016197,2]
[357631533,1744255842997,-500.0,0.00016197,2]
[357631534,1744255843018,-500.0,0.00016197,2]
[357631535,1744255843036,-500.0,0.00016197,2]
[357631536,1744255843054,-250.0,0.00016197,2]
[357631537,1744255843071,-361.61513023,0.00016199,2]
[357631538,1744255843090,-18359.59056387,0.000162,2]
[357631539,1744255843109,-3292.1025798,0.000162,2]
[357631637,1744256652463,-158.5583837,0.00015099,2]
[357631638,1744256667593,-238.305508,0.00015099,2]
[357631639,1744256672989,-201.14950577,0.00015098,2]
[357631640,1744256703668,-48.85049423,0.00015098,2]
[357631641,1744256703711,-251.14950577,0.00015098,2]
[357631645,1744256765516,-300.0,0.00015098,2]
[357631650,1744256823798,-300.0,0.00015098,2]
[357631653,1744256883647,-154.9368,0.00015098,2]
[357631654,1744256943073,-175.31347148,0.00015098,2]
[357631660,1744257005286,-151.10456751,0.00015098,2]
[357631676,1744257031890,-148.89543249,0.00015098,2]
[357631677,1744257031901,-11686.0396675,0.00015099,2]
[357631679,1744257031911,-2911.7389216,0.00015099,2]
[357631680,1744257031921,-820.0,0.00016,2]
[357631681,1744257031931,-1000.41839415,0.00016,2]
[357631682,1744257031940,-2888.98891741,0.00016,2]
[357631683,1744257031950,-250.0,0.00016099,2]
[357631684,1744257031960,-401.88072782,0.00016099,2]
[357631685,1744257031970,-7119.5417759,0.000161,2]
[357631686,1744257031982,-12236.41334957,0.000161,2]
[357631687,1744257032002,-966.69040395,0.000161,2]
[357631688,1744257032014,-466.53666222,0.000161,2]
[357631689,1744257032025,-359.3437208,0.000161,2]
[357631690,1744257032058,-14498.797019,0.000161,2]
[357631717,1744257038177,-9891.57385811,0.000161,2]
[357631718,1744257038189,-358.12697751,0.000161,2]
[357631725,1744257040343,-0.00510355,0.000161,2]
[357631858,1744257046058,-1441.6727147,0.000161,2]
[357631859,1744257046113,-2710.0817448,0.000161,2]
[357631875,1744257073131,250.0,0.00014999,2]
[357631876,1744257153885,569.66,0.00025,120]
[357631877,1744257174153,569.667,0.00015001,2]
[357631878,1744257190455,233.08,0.00010959,2]
[357631890,1744257922236,-609.38157267,0.00015076,2]
[357632236,1744258232172,-174.5636727,0.00015076,2]
[357632237,1744258232183,-734.6563273,0.00015076,2]
[357632241,1744258232229,-6460.30529743,0.00015076,2]
[357632243,1744258232239,-2527.86530269,0.000159,2]
[357632245,1744258232249,-300.0,0.00015998,2]
[357632247,1744258232259,-281.31650948,0.00015999,2]
[357632249,1744258232269,-1381.35483899,0.00015999,2]
[357632251,1744258232279,-250.0,0.00015999,2]
[357632253,1744258232288,-120263.49316531,0.00016,2]
[357632256,1744258232305,-1504.48655056,0.00016,2]
[357632321,1744258238410,-386.01728257,0.00016,2]
[357632322,1744258238423,-892.31656702,0.00016,2]
[357632323,1744258238439,-821.1406638,0.00016,2]
[357632324,1744258238452,-2923.75466224,0.00016,2]
[357632325,1744258238465,-14979.78969204,0.00016,2]
[357632326,1744258238477,-2209.61959893,0.00016,2]
[357632327,1744258238489,-2493.08262015,0.00016,2]
[357632328,1744258238503,-65900.01630391,0.00016,2]
[357632329,1744258240449,-6352.87195321,0.00016,2]
[357632422,1744258243278,-13558.63576574,0.00016,2]
[357632425,1744258243291,-39979.59800018,0.00016,2]
[357632427,1744258243303,-4061.237117,0.00016,2]
[357632429,1744258243315,-2401.81924418,0.00016,2]
[357632430,1744258243327,-27588.21314983,0.00016,2]
[357632438,1744258246371,-7652.13637131,0.00016,2]
[357632439,1744258246384,-3075.29990312,0.00016,2]
[357632440,1744258246426,-29199.23403232,0.00016,2]
[357632441,1744258246488,-6095.55,0.00016,2]
[357632442,1744258246501,-4325.0,0.00016,2]
[357632443,1744258253466,9117.68303895,0.00015,2]
[357632444,1744258323200,250.0,0.00014976,2]
[357632445,1744258332869,-182.80942083,0.00015075,2]
[357632446,1744258352685,-328.00538648,0.00015074,2]
[357632447,1744258384133,-300.0,0.00015073,2]
[357632448,1744258438701,-250.0,0.00015074,2]
[357632449,1744258447494,-185.18988755,0.00015073,2]
[357632450,1744258473294,-177.00922822,0.00015073,2]
[357632451,1744258503855,-175.2567,0.00015072,2]
[357632452,1744258558153,801.6,0.00010959,2]
[357632453,1744258563912,-217.7256521,0.00015072,2]
[357632454,1744258594585,-223.87239316,0.00015072,2]
[357632455,1744258623001,-202.461976,0.00015071,2]
[357632456,1744258633459,-97.538024,0.00015071,2]
[357632457,1744258633485,-61.9804978,0.00015072,2]
[357632458,1744258678704,609.38157267,0.00014972,2]
[357632459,1744258679481,-151.00000001,0.00015072,2]
[357632460,1744258714497,-168.60478842,0.00015071,2]
[357632461,1744258797601,168.60478842,0.00014971,2]
[357632462,1744258824327,-300.0,0.0001507,2]
[357632463,1744258824351,-21.52174526,0.00015071,2]
[357632464,1744258832675,-287.1933,0.0001507,2]
[357632465,1744258867272,-168.96331788,0.00015069,2]
[357632466,1744258923134,-268.0285487,0.00015069,2]
[357632468,1744258986664,-300.0,0.00015069,2]
[357632469,1744259043750,-159.36337947,0.00015069,2]
[357632541,1744259432373,-300.0,0.00015682,2]
[357632543,1744259432383,-11223.27591598,0.00015683,2]
[357632545,1744259432393,-217.7256521,0.00015685,2]
[357632546,1744259432403,-1598.2706231,0.0001578,2]
[357632548,1744259432412,-250.0,0.00015899,2]
[357632549,1744259432422,-244.90860113,0.00016199,2]
[357632550,1744259432432,-234.75551798,0.00016199,2]
[357632552,1744259432442,-36.23445767,0.00016684,2]
[357632568,1744259433063,-192.70139468,0.00015682,2]
[357632578,1744259438347,-307.29860532,0.00015682,2]
[357632579,1744259438357,-500.0,0.00015682,2]
[357632580,1744259438367,-500.0,0.00015682,2]
[357632581,1744259438377,-500.0,0.00015682,2]
[357632582,1744259438387,-500.0,0.00015682,2]
[357632583,1744259438397,-500.0,0.00015682,2]
[357632584,1744259438407,-500.0,0.00015682,2]
[357632585,1744259438417,-500.0,0.00015682,2]
[357632586,1744259438427,-442.95190158,0.00015682,2]
[357632587,1744259438612,-57.04809842,0.00015682,2]
[357632588,1744259438623,-359.35747879,0.00015682,2]
[357632589,1744259438632,-244.90860113,0.00016199,2]
[357632590,1744259438642,-500.0,0.00016438,2]
[357632591,1744259438651,-500.0,0.00016438,2]
[357632592,1744259438662,-235.20180779,0.00016438,2]
[357632593,1744259438671,-244.90860113,0.00016683,2]
[357632594,1744259438681,-234.75551798,0.00016683,2]
[357632595,1744259438691,-544.03476759,0.00016684,2]
[357632596,1744259438701,-564.3717366,0.000167,2]
[357632597,1744259438711,-564.3717366,0.000167,2]
[357632598,1744259438720,-156.6949557,0.000167,2]
[357632599,1744259438730,-156.6949557,0.000169,2]
[357632600,1744259438739,-318.0,0.00016958,2]
[357632601,1744259438748,-318.0,0.00016958,2]
[357632602,1744259438758,-2416.30759899,0.00017043,2]
[357632603,1744259438767,-454.47552346,0.000171,2]
[357632604,1744259438777,-2252.0,0.00017128,2]
[357632605,1744259438787,-401.0,0.00017128,2]
[357632606,1744259438797,-196.92155663,0.00017142,2]
[357632607,1744259438807,-503.45321817,0.00017143,2]
[357632608,1744259438817,-318.0,0.00017143,2]
[357632609,1744259438827,-318.0,0.00017143,2]
[357632610,1744259438837,-358.0,0.00017143,2]
[357632611,1744259438847,-318.0,0.00017143,2]
[357632612,1744259438857,-358.0,0.00017143,2]
[357632613,1744259438866,-318.0,0.00017143,2]
[357632614,1744259438876,-358.0,0.00017143,2]
[357632615,1744259438885,-318.0,0.00017143,2]
[357632616,1744259438895,-358.0,0.00017143,2]
[357632617,1744259438905,-358.0,0.00017143,2]
[357632618,1744259438915,-318.0,0.00017143,2]
[357632619,1744259438924,-358.0,0.00017143,2]
[357632620,1744259438934,-318.0,0.00017143,2]
[357632621,1744259438943,-318.0,0.00017143,2]
[357632622,1744259438953,-358.0,0.00017143,2]
[357632623,1744259438963,-318.0,0.00017143,2]
[357632624,1744259438973,-358.0,0.00017143,2]
[357632625,1744259438983,-318.0,0.00017143,2]
[357632626,1744259438991,-358.0,0.00017143,2]
[357632627,1744259438999,-358.0,0.00017143,2]
[357632628,1744259439008,-358.0,0.00017143,2]
[357632629,1744259439015,-358.0,0.00017143,2]
[357632630,1744259439022,-358.0,0.00017143,2]
[357632631,1744259439029,-318.0,0.00017143,2]
[357632632,1744259439036,-358.0,0.00017143,2]
[357632633,1744259439044,-318.0,0.00017143,2]
[357632634,1744259439052,-358.0,0.00017143,2]
[357632635,1744259439063,-318.0,0.00017143,2]
[357632636,1744259439070,-358.0,0.00017143,2]
[357632637,1744259439078,-318.0,0.00017143,2]
[357632638,1744259439085,-318.0,0.00017143,2]
[357632639,1744259439092,-358.0,0.00017143,2]
[357632640,1744259439100,-318.0,0.00017143,2]
[357632641,1744259439108,-358.0,0.00017143,2]
[357632642,1744259439115,-318.0,0.00017143,2]
[357632643,1744259439122,-318.0,0.00017143,2]
[357632644,1744259439130,-439.75198171,0.00017143,2]
[357632645,1744259439138,-318.0,0.00017143,2]
[357632646,1744259439146,-391.19998625,0.00017143,2]
[357632647,1744259439155,-420.0,0.00017151,2]
[357632648,1744259439163,-500.0,0.00017173,2]
[357632649,1744259439177,-500.0,0.00017173,2]
[357632650,1744259439183,-500.0,0.00017173,2]
[357632651,1744259439191,-500.0,0.00017173,2]
[357632652,1744259439199,-313.23584472,0.00017173,2]
[357632653,1744259439332,-500.0,0.00017173,2]
[357632654,1744259439341,-500.0,0.00017173,2]
[357632655,1744259439349,-500.0,0.00017173,2]
[357632656,1744259439357,-500.0,0.00017173,2]
[357632657,1744259439366,-500.0,0.00017173,2]
[357632658,1744259439373,-500.0,0.00017173,2]
[357632659,1744259439382,-500.0,0.00017173,2]
[357632660,1744259439390,-500.0,0.00017173,2]
[357632661,1744259439397,-500.0,0.00017173,2]
[357632662,1744259439405,-500.0,0.00017173,2]
[357632663,1744259439412,-482.62614478,0.00017173,2]
[357632664,1744259439421,-500.0,0.00017173,2]
[357632665,1744259439429,-500.0,0.00017173,2]
[357632666,1744259439437,-500.0,0.00017173,2]
[357632667,1744259439444,-500.0,0.00017173,2]
[357632668,1744259439452,-500.0,0.00017173,2]
[357632669,1744259439470,-500.0,0.00017173,2]
[357632670,1744259439482,-200.0,0.0001719,2]
[357632671,1744259439491,-500.0,0.00017199,2]
[357632672,1744259439500,-837.80299543,0.000172,3]
[357632673,1744259439507,-158339.35338143,0.000172,2]
[357632674,1744259439516,-4310.65891659,0.000172,3]
[357632681,1744259441007,-0.00568697,0.00017199,2]
[357632682,1744259441020,-244.90291416,0.00017199,2]
[357632683,1744259441032,-10992.77902992,0.000172,3]
[357632684,1744259441042,-9551.86393204,0.000172,3]
[357632693,1744259443374,-197.61233118,0.00017199,2]
[357632694,1744259443385,-234.75551798,0.00017199,2]
[357632695,1744259443395,-197.61233118,0.00017199,2]
[357632696,1744259443405,-234.75551798,0.00017199,2]
[357632697,1744259443414,-2984.86133249,0.000172,3]
[357632698,1744259443424,-38891.06316566,0.000172,2]
[357632718,1744259446405,-1660.17900002,0.000172,2]
[357632719,1744259446464,-7550.71116543,0.000172,2]
[357632720,1744259555563,-224.52615328,0.00015582,2]
[357632834,1744260633173,-417.22754796,0.00015582,2]
[357632835,1744260633183,-25.47384672,0.00015582,2]
[357632836,1744260633193,-300.0,0.00015672,2]
[357632837,1744260633202,-9424.10353751,0.00015673,2]
[357632838,1744260633212,-1110.16110653,0.00016382,2]
[357632839,1744260633221,-2282.03686882,0.00016999,2]
[357632840,1744260633230,-191.34994356,0.00016999,2]
[357632841,1744260633239,-191.34994356,0.00017,2]
[357632842,1744260633248,-543.0,0.00017032,2]
[357632843,1744260633257,-706.0,0.00017032,2]
[357632844,1744260633267,-401.0,0.00017032,2]
[357632845,1744260633276,-2252.0,0.00017032,2]
[357632846,1744260633285,-200.0,0.00017089,2]
[357632847,1744260633294,-169.00887443,0.00017098,2]
[357632848,1744260633303,-464.4857166,0.00017098,2]
[357632849,1744260633312,-500.0,0.00017099,2]
[357632850,1744260633321,-459.89501953,0.00017099,2]
[357632851,1744260633331,-500.0,0.00017099,2]
[357632852,1744260633340,-79169.67669072,0.00017099,2]
[357632853,1744260633350,-7651.71897325,0.00017099,3]
[357632854,1744260633360,-217260.19024987,0.000171,2]
[357632855,1744260633372,-37376.76895387,0.000171,2]
[357632856,1744260633396,-467.09929999,0.000171,2]
[357632857,1744260633408,-29366.11778981,0.000171,2]
[357632858,1744260633419,-789.73776817,0.000171,2]
[357632881,1744260638541,-539.92860875,0.00015672,2]
[357632883,1744260638551,-526.49455804,0.00015672,2]
[357632885,1744260638564,-500.0,0.00015672,2]
[357632886,1744260638574,-500.0,0.00015672,2]
[357632888,1744260638583,-500.0,0.00015672,2]
[357632890,1744260638593,-384.31218921,0.00015672,2]
[357632929,1744260643617,-115.68781079,0.00015672,2]
[357632931,1744260643627,-519.51685077,0.00015672,2]
[357632933,1744260643638,-33985.13777662,0.000171,2]
[357632987,1744260646566,-401.0,0.00017032,2]
[357632989,1744260646575,-32571.43929064,0.000171,2]
[357632994,1744260646620,-8006.5956,0.000171,2]
[357633027,1744260661700,-156.72050417,0.00015482,2]
[357633028,1744260986583,163.92,0.00010959,2]
[357633029,1744260997133,163.92,0.00010959,2]
[357633030,1744261007725,655.69,0.00010959,2]
[357633031,1744261044553,1540.16,0.00015,2]
[357633053,1744261766568,1200.0,0.00018,10]
[357633079,1744261832649,-93.27949583,0.00015482,2]
[357633081,1744261832660,-500.0,0.00015662,2]
[357633084,1744261832671,-437.14192987,0.00015662,2]
[357633086,1744261832683,-153.85584994,0.00015662,2]
[357633088,1744261832692,-500.0,0.00015662,2]
[357633090,1744261832703,-500.0,0.00015662,2]
[357633092,1744261832714,-500.0,0.00015662,2]
[357633094,1744261832724,-500.0,0.00015662,2]
[357633096,1744261832734,-327.532,0.00015662,2]
[357633098,1744261832745,-500.0,0.00015662,2]
[357633100,1744261832755,-500.0,0.00015662,2]
[357633102,1744261832766,-500.0,0.00015662,2]
[357633104,1744261832776,-500.0,0.00015662,2]
[357633106,1744261832786,-500.0,0.00015662,2]
[357633108,1744261832796,-500.0,0.00015662,2]
[357633110,1744261832806,-500.0,0.00015662,2]
[357633112,1744261832816,-500.0,0.00015662,2]
[357633114,1744261832826,-500.0,0.00015662,2]
[357633116,1744261832836,-500.0,0.00015662,2]
[357633118,1744261832846,-500.0,0.00015662,2]
[357633120,1744261832858,-500.0,0.00015662,2]
[357633122,1744261832868,-500.0,0.00015662,2]
[357633124,1744261832879,-500.0,0.00015662,2]
[357633127,1744261832890,-500.0,0.00015662,2]
[357633129,1744261832900,-500.0,0.00015662,2]
[357633131,1744261832911,-500.0,0.00015662,2]
[357633133,1744261832921,-500.0,0.00015662,2]
[357633135,1744261832932,-500.0,0.00015662,2]
[357633137,1744261832947,-500.0,0.00015662,2]
[357633139,1744261832958,-500.0,0.00015662,2]
[357633141,1744261832968,-500.0,0.00015662,2]
[357633143,1744261832979,-500.0,0.00015662,2]
[357633145,1744261832989,-500.0,0.00015662,2]
[357633147,1744261833000,-500.0,0.00015662,2]
[357633149,1744261833010,-300.0,0.00015662,2]
[357633150,1744261833021,-540.10941417,0.00015662,2]
[357633151,1744261833033,-152.0,0.00016503,2]
[357633152,1744261833044,-1014.0,0.00017,2]
[357633153,1744261833055,-706.0,0.00017032,2]
[357633154,1744261833066,-543.0,0.00017032,2]
[357633155,1744261833077,-2252.0,0.00017032,2]
[357633156,1744261833087,-401.0,0.00017032,2]
[357633157,1744261833097,-500.0,0.000171,2]
[357633158,1744261833107,-500.0,0.000171,2]
[357633159,1744261833117,-420.0,0.00017129,2]
[357633160,1744261833128,-200.0,0.0001719,2]
[357633161,1744261833138,-179.15085268,0.00017199,2]
[357633162,1744261833148,-500.0,0.00017199,2]
[357633163,1744261833159,-13252.29794681,0.000172,2]
[357633164,1744261833170,-13252.29794673,0.000172,2]
[357633165,1744261833180,-171.47018034,0.0001726,2]
[357633166,1744261833190,-632.0,0.000173,2]
[357633167,1744261833201,-157.284957,0.00017305,2]
[357633168,1744261833214,-166.24262504,0.00017422,2]
[357633169,1744261833224,-171.47018034,0.00017425,2]
[357633170,1744261833234,-13252.29794673,0.00017452,2]
[357633171,1744261833245,-166.24262501,0.0001751,2]
[357633172,1744261833256,-4528.41723572,0.00017522,2]
[357633175,1744261833270,-471.58276428,0.00017522,2]
[357633177,1744261833280,-166.24262501,0.00017598,2]
[357633179,1744261833291,-171.47018034,0.00017616,2]
[357633181,1744261833301,-360.1490082,0.00017672,2]
[357633183,1744261833311,-360.1490082,0.00017672,2]
[357633185,1744261833321,-360.1490082,0.00017672,2]
[357633187,1744261833332,-360.1490082,0.00017672,2]
[357633189,1744261833342,-360.1490082,0.00017672,2]
[357633191,1744261833352,-166.24262501,0.00017686,2]
[357633193,1744261833363,-600.0,0.00017718,2]
[357633195,1744261833373,-1531.76409266,0.00017728,2]
[357633196,1744261833385,-9776.9422221,0.00017728,2]
[357633197,1744261833399,-1943.59163197,0.00017728,2]
[357633198,1744261833409,-166.24262501,0.00017774,2]
[357633199,1744261833420,-171.47018034,0.00017808,2]
[357633200,1744261833430,-279.054,0.00017849,2]
[357633201,1744261833440,-500.0,0.0001787,2]
[357633202,1744261833450,-128536.98528378,0.00017871,2]
[357633203,1744261833463,-72283.97674228,0.00017871,2]
[357633204,1744261833475,-169179.03797394,0.00017871,2]
[357633205,1744261833485,-153.0,0.00017874,2]
[357633206,1744261833495,-153.0,0.00017874,2]
[357633207,1744261833505,-153.0,0.00017874,2]
[357633208,1744261833515,-153.0,0.00017874,2]
[357633209,1744261833526,-154.2795494,0.00017874,2]
[357633210,1744261833536,-324.6726712,0.00017874,2]
[357633211,1744261833547,-387.7513331,0.00017877,2]
[357633212,1744261833557,-540.1015625,0.00017901,2]
[357633213,1744261833567,-9848.21411762,0.00017901,3]
[357633214,1744261833578,-16314.5322119,0.00017901,2]
[357633233,1744261838927,-12338.79247725,0.00017901,2]
[357633234,1744261839761,-344.86286795,0.00017901,2]
[357633414,1744261846839,-31950.81756002,0.00017901,2]
[357633415,1744261846850,-500.0,0.00017902,2]
[357633416,1744261846860,-151.0,0.00017902,2]
[357633417,1744261846870,-151.0,0.00017902,2]
[357633418,1744261846880,-503.0,0.00017902,2]
[357633419,1744261846891,-503.0,0.00017902,2]
[357633420,1744261846900,-503.0,0.00017902,2]
[357633421,1744261846910,-503.0,0.00017902,2]
[357633422,1744261846919,-503.0,0.00017902,2]
[357633423,1744261846930,-503.0,0.00017902,2]
[357633424,1744261846943,-503.0,0.00017902,2]
[357633425,1744261846953,-503.0,0.00017902,2]
[357633426,1744261846963,-503.0,0.00017902,2]
[357633427,1744261846973,-503.0,0.00017902,2]
[357633428,1744261846983,-503.0,0.00017902,2]
[357633429,1744261846994,-503.0,0.00017902,2]
[357633430,1744261847005,-503.0,0.00017902,2]
[357633432,1744261847016,-503.0,0.00017902,2]
[357633434,1744261847026,-503.0,0.00017902,2]
[357633436,1744261847037,-503.0,0.00017902,2]
[357633438,1744261847046,-503.0,0.00017902,2]
[357633439,1744261847056,-503.0,0.00017902,2]
[357633440,1744261847065,-503.0,0.00017902,2]
[357633441,1744261847075,-507.81134862,0.00017902,2]
[357633442,1744261847086,-151.60864992,0.00017902,2]
[357633443,1744261847095,-254.05696722,0.00017902,2]
[357633444,1744261847105,-500.0,0.00017902,2]
[357633445,1744261847115,-500.0,0.00017902,2]
[357633446,1744261847124,-500.0,0.00017902,2]
[357633447,1744261847134,-500.0,0.00017902,2]
[357633448,1744261847143,-236.67644531,0.00017902,2]
[357633449,1744261847165,-263.32355469,0.00017902,2]
[357633450,1744261847175,-500.0,0.00017902,2]
[357633451,1744261847185,-500.0,0.00017902,2]
[357633452,1744261847194,-500.0,0.00017902,2]
[357633453,1744261847204,-323.62176632,0.00017902,2]
[357633454,1744261849018,-172.7680651,0.00017902,2]
[357633455,1744261857746,-188.02735345,0.00015662,2]
[357633456,1744261868239,-194.18063321,0.00015662,2]
[357633457,1744261868265,-5.91929342,0.00017901,2]
[357633458,1744261874289,-202.90515104,0.00015562,2]
[357633459,1744261881703,-47.09484896,0.00015562,2]
[357633460,1744261881727,-250.90515104,0.00017877,2]
[357633461,1744261905721,-250.90515104,0.000176,2]
[357634381,1744262284535,-276.5493959,0.000155,2]
[357634513,1744262298603,-273.8779309,0.000155,2]
[357634622,1744262309668,-183.8779309,0.000155,2]
[357634907,1744262322236,-67.74504397,0.000155,2]
[357634908,1744262322260,-232.25495603,0.000155,2]
[357635207,1744262561282,-183.8779309,0.000155,2]
[357636661,1744263034896,-46.86711307,0.000155,2]
[357636662,1744263034925,-117.93365345,0.00015562,2]
[357636663,1744263037837,-132.06634655,0.00015562,2]
[357636664,1744263037847,-300.0,0.00017088,2]
[357636665,1744263037856,-2252.0,0.00017089,2]
[357636666,1744263037866,-401.0,0.00017089,2]
[357636667,1744263037876,-228.087212,0.00017364,2]
[357636668,1744263037885,-171.47018035,0.00017397,2]
[357636669,1744263037895,-305.7763476,0.000175,2]
[357636670,1744263037904,-16.01958197,0.00017597,2]
[357636671,1744263037916,-483.98041803,0.00017597,2]
[357636672,1744263037925,-591.948,0.00017597,2]
[357636673,1744263037935,-500.0,0.00017597,2]
[357636674,1744263037944,-153.57866519,0.00017597,2]
[357636675,1744263037953,-335.30211268,0.000176,2]
[357636676,1744263038011,-24.84689552,0.000176,2]
[357636678,1744263038021,-360.1490082,0.000176,2]
[357636680,1744263038031,-360.1490082,0.000176,2]
[357636682,1744263038040,-302.9836823,0.000176,2]
[357636684,1744263038049,-360.1490082,0.000176,2]
[357636686,1744263038059,-153.0,0.000176,2]
[357636688,1744263038068,-719.4511279,0.000176,2]
[357636690,1744263038078,-153.0,0.000176,2]
[357636692,1744263038087,-360.1490082,0.000176,2]
[357636694,1744263038097,-171.47018035,0.00017616,2]
[357636697,1744263038107,-200.0,0.00017617,2]
[357636699,1744263038118,-475.40559688,0.00017627,2]
[357636701,1744263038128,-208788.1757891,0.00017628,2]
[357636703,1744263038140,-27752.36771797,0.00017628,2]
[357636723,1744263038691,-3518.19227297,0.00017628,2]
[357636724,1744263038703,-388.84957946,0.00017628,2]
[357636726,1744263039493,-155.86981566,0.00017628,2]
[357636761,1744263040302,-1789.07229446,0.00017628,2]
[357636959,1744263042925,-2061.52148577,0.00017628,2]
[357637313,1744263046103,-82172.89178172,0.00017628,2]
[357637905,1744263052100,-234.3344554,0.0001714,2]
[357637977,1744263052789,-234.3344554,0.0001714,2]
[357643628,1744263186204,608.44,0.00010959,2]
[357643631,1744263913162,-169.78,0.00017,2]
[357643746,1744264232092,-250.0,0.00017039,2]
[357643747,1744264232104,-300.0,0.00017138,2]
[357643748,1744264232115,-706.0,0.0001714,2]
[357643749,1744264232126,-543.0,0.0001714,2]
[357643750,1744264232137,-2252.0,0.0001714,2]
[357643751,1744264232149,-171.065409,0.00017364,2]
[357643752,1744264232159,-156.69125639,0.00017588,2]
[357643753,1744264232169,-500.0,0.00017588,2]
[357643754,1744264232179,-500.0,0.00017588,2]
[357643755,1744264232189,-500.0,0.00017588,2]
[357643756,1744264232200,-500.0,0.00017588,2]
[357643757,1744264232210,-231.37624048,0.00017588,2]
[357643758,1744264232220,-500.0,0.00017588,2]
[357643759,1744264232230,-375.15,0.00017588,2]
[357643760,1744264232241,-153.0,0.000177,2]
[357643761,1744264232252,-635.0,0.000177,2]
[357643762,1744264232262,-772.81925657,0.00017718,2]
[357643763,1744264232273,-402.15182403,0.00017727,2]
[357643764,1744264232283,-200.0,0.00017791,2]
[357643765,1744264232293,-153.0,0.000178,2]
[357643766,1744264232303,-153.0,0.000178,2]
[357643767,1744264232313,-153.0,0.000178,2]
[357643768,1744264232324,-360.1490082,0.000178,2]
[357643769,1744264232334,-360.1490082,0.000178,2]
[357643770,1744264232345,-153.0,0.000178,2]
[357643771,1744264232355,-360.1490082,0.000178,2]
[357643772,1744264232365,-153.0,0.000178,2]
[357643773,1744264232376,-153.0,0.000178,2]
[357643774,1744264232386,-153.0,0.000178,2]
[357643775,1744264232396,-153.0,0.000178,2]
[357643776,1744264232406,-153.0,0.000178,2]
[357643777,1744264232416,-153.0,0.000178,2]
[357643778,1744264232427,-153.0,0.000178,2]
[357643779,1744264232436,-153.0,0.000178,2]
[357643780,1744264232446,-153.0,0.000178,2]
[357643781,1744264232456,-360.1490082,0.000178,2]
[357643782,1744264232466,-153.0,0.000178,2]
[357643784,1744264232482,-360.1490082,0.000178,2]
[357643786,1744264232493,-360.1490082,0.000178,2]
[357643788,1744264232503,-367.9452446,0.000178,2]
[357643791,1744264232513,-360.1490082,0.000178,2]
[357643793,1744264232524,-500.0,0.00017801,2]
[357643795,1744264232534,-227.90353233,0.00017801,2]
[357643797,1744264232544,-30474.50255856,0.00017802,2]